bitfinex/quotes_ETHUSD_20230403
["timestamp","ask_amount","ask_price","bid_price","bid_amount"]
[1680514785085,1.41441,1809.6,1809.5,0.02001783]
[1680514785399,0.19341,1809.6,1809.5,0.02001783]
[1680514785700,0.938251,1809.6,1809.5,0.02001783]
[1680514785856,0.938251,1809.6,1809.1,1.54365579]
[1680514786158,0.58023,1809.6,1809.1,1.54365579]
[1680514786771,0.58023,1809.6,1809.1,7.35265579]
[1680514786968,0.58023,1809.6,1809.5,0.0192643]
[1680514787999,0.58023,1809.6,1809.1,7.35265579]
[1680514788800,3.58621,1809.7,1809.1,10.48821108]
[1680514788999,3.1994,1809.7,1809.2,7.43526491]
[1680514789177,0.56314732,1809.5,1809.2,7.43526491]
[1680514789591,0.56314732,1809.5,1809.2,8.3014769]
[1680514789790,0.56314732,1809.5,1809.2,8.3254769]
[1680514790002,0.56314732,1809.5,1809.2,8.34475877]
[1680514790201,3.19941,1809.7,1809.2,8.34475877]
[1680514790202,3.19941,1809.7,1809.3,0.83447588]
[1680514790901,3.19941,1809.7,1809.3,1.41191968]
[1680514791279,0.52418125,1809.6,1809.3,1.41191968]
[1680514793808,0.52418125,1809.6,1809.4,0.5774438]
[1680514794302,0.52418125,1809.6,1809.3,2.17813167]
[1680514795304,0.52418125,1809.6,1809.4,0.5774438]
[1680514795812,0.52418125,1809.6,1809.3,2.17813167]
[1680514795990,0.52418125,1809.6,1809.4,0.5774438]
[1680514804032,0.52418125,1809.6,1809.4,7.97812137]
[1680514804239,0.52418125,1809.6,1809.4,18.99132137]
[1680514804442,0.52418125,1809.6,1809.4,18.12510938]
[1680514804799,0.52418125,1809.6,1809.4,18.99132137]
[1680514805022,0.52418125,1809.6,1809.5,0.5774438]
[1680514805303,0.22192142,1809.9,1809.5,1.99105446]
[1680514805636,0.21592142,1809.9,1809.5,1.41361066]
[1680514806053,0.21592142,1809.9,1809.5,1.99105446]
[1680514806347,0.4585977,1809.8,1809.5,1.99105446]
[1680514810468,0.4585977,1809.8,1809.5,8.07636446]
[1680514810641,0.4585977,1809.8,1809.6,1.30290938]
[1680514811554,0.4585977,1809.8,1809.6,7.11190938]
[1680514812136,0.14361251,1810.0,1809.6,7.11190938]
[1680514812753,0.14361251,1810.0,1809.5,5.5120438]
[1680514812754,0.72372251,1810.0,1809.5,5.5120438]
[1680514812947,0.72372251,1810.0,1809.5,5.5100438]
[1680514813771,0.72372251,1810.0,1809.5,0.5774438]
[1680514813942,0.72372251,1810.0,1809.4,18.26785579]
[1680514813943,0.71772251,1810.0,1809.4,18.26785579]
[1680514814142,0.07177225,1809.9,1809.4,18.26585579]
[1680514814478,0.26516225,1809.9,1809.4,17.3996438]
[1680514814676,0.26516225,1809.9,1809.4,18.26585579]
[1680514815483,0.26234018,1809.9,1809.4,18.27185579]
[1680514816782,0.26234018,1809.9,1809.4,17.4056438]
[1680514817088,0.26234018,1809.9,1809.4,18.27185579]
[1680514817782,0.26234018,1809.9,1809.4,17.4056438]
[1680514817983,0.19339,1809.9,1809.4,18.27185579]
[1680514818149,0.19339,1809.9,1809.5,0.5774438]
[1680514818683,0.74027393,1810.0,1809.5,0.5774438]
[1680514818884,0.35353393,1810.0,1809.6,0.5774438]
[1680514819092,0.13761251,1810.0,1809.7,1.7994438]
[1680514819263,0.61158276,1809.9,1809.7,22.26887307]
[1680514819468,0.61158276,1809.9,1809.8,7.6014438]
[1680514819685,0.61158276,1809.9,1809.8,7.8777138]
[1680514820183,4.8959,1810.4,1809.8,7.8777138]
[1680514820362,0.19333,1810.3,1809.9,7.031]
[1680514822082,0.19333,1810.3,1809.9,5.809]
[1680514822948,0.19333,1810.3,1809.8,1.8074438]
[1680514823187,0.19333,1810.3,1809.8,7.031]
[1680514823378,1.09057714,1810.3,1809.8,5.815]
[1680514823547,1.09057714,1810.3,1809.8,0.006]
[1680514823751,1.09057714,1810.3,1809.7,14.74681108]
[1680514824679,1.09057714,1810.3,1809.8,5.809]
[1680514824891,1.09057714,1810.3,1809.8,5.815]
[1680514825754,0.70390714,1810.3,1809.8,5.815]
[1680514825980,6.68788,1810.4,1809.8,6.09127]
[1680514826321,6.68188,1810.4,1809.8,6.09127]
[1680514826656,6.29523,1810.4,1809.8,6.09127]
[1680514830501,6.31777142,1810.4,1809.8,6.09127]
[1680514832192,6.31777142,1810.4,1809.8,5.815]
[1680514832363,0.63177714,1810.3,1809.8,5.815]
[1680514832564,0.19335,1810.2,1809.8,5.815]
[1680514833677,0.84765856,1810.3,1809.8,5.815]
[1680514834079,0.65431856,1810.3,1809.8,6.09126]
[1680514834365,0.50520807,1810.2,1809.8,6.09126]
[1680514834584,0.50520807,1810.2,1809.8,5.815]
[1680514835000,0.50520807,1810.2,1809.8,6.09127]
[1680514835209,0.50520807,1810.2,1809.8,5.815]
[1680514837269,0.50520807,1810.2,1809.8,5.809]
[1680514839226,0.50520807,1810.2,1809.8,5.815]
[1680514839427,0.50520807,1810.2,1809.8,5.809]
[1680514840215,0.5021272,1810.2,1809.9,0.5809]
[1680514853690,0.6954772,1810.2,1809.8,0.5854438]
[1680514853888,0.6954772,1810.2,1809.8,0.5834438]
[1680514854348,0.6954772,1810.2,1809.7,0.002]
[1680514854349,0.689,1810.0,1809.7,0.002]
[1680514854548,0.689,1810.0,1809.5,1.15917296]
[1680514854549,0.686,1809.9,1809.5,0.86621199]
[1680514854791,0.19339,1809.8,1809.4,0.5774438]
[1680514855086,0.7549,1809.9,1809.4,6.6627738]
[1680514855087,0.7609,1809.9,1809.4,6.6627738]
[1680514855288,0.50195066,1809.8,1809.4,6.3864438]
[1680514855489,0.69534066,1809.8,1809.4,6.3864438]
[1680514857107,0.69534066,1809.8,1809.6,5.809]
[1680514857108,0.50195066,1809.8,1809.6,5.809]
[1680514857706,0.50195066,1809.8,1809.6,18.3904438]
[1680514858266,0.19936,1810.1,1809.6,18.6667438]
[1680514858584,0.19935,1810.2,1809.6,24.50215579]
[1680514858783,0.19935,1810.2,1809.7,2.14189831]
[1680514859307,0.19935,1810.2,1809.7,2.71934211]
[1680514860718,0.19935,1810.2,1809.7,3.01962211]
[1680514861022,0.19935,1810.2,1809.7,2.99562211]
[1680514861188,0.19935,1810.2,1809.7,2.71934211]
[1680514861388,1.08077614,1810.2,1809.7,0.5774438]
[1680514861631,1.08077614,1810.2,1809.7,0.8537238]
[1680514862001,1.08077614,1810.2,1809.7,0.5774438]
[1680514864301,0.50292712,1810.1,1809.7,1.44365579]
[1680514864611,0.50292712,1810.1,1809.9,0.5774438]
[1680514864833,0.50292712,1810.1,1810.0,9.17421108]
[1680514865028,0.50292712,1810.1,1810.0,9.45045108]
[1680514865173,0.006,1810.4,1810.0,9.45045108]
[1680514865373,0.006,1810.4,1810.0,9.47445108]
[1680514865613,0.006,1810.4,1810.1,6.75644511]
[1680514866091,0.14273927,1810.5,1810.1,6.75644511]
[1680514866414,0.50357792,1810.3,1810.1,6.75644511]
[1680514867213,0.006,1810.4,1810.1,6.75644511]
[1680514867416,0.14273927,1810.5,1810.1,6.75644511]
[1680514869183,0.33604927,1810.5,1810.1,6.75644511]
[1680514869498,0.33604927,1810.5,1810.1,0.94744511]
[1680514869697,0.14273927,1810.5,1810.0,9.17621108]
[1680514869895,0.33604927,1810.5,1810.0,9.17421108]
[1680514870095,0.33604927,1810.5,1810.0,9.45045108]
[1680514870503,0.33604927,1810.5,1810.0,9.17421108]
[1680514870893,0.33604927,1810.5,1810.0,2.78776728]
[1680514871602,0.02254142,1810.4,1809.9,17.2609938]
[1680514871848,0.02254142,1810.4,1809.9,17.2589938]
[1680514872010,0.02254142,1810.4,1809.9,23.0679938]
[1680514872797,0.21586142,1810.4,1809.9,23.0679938]
[1680514872997,0.21586142,1810.4,1809.9,16.9827438]
[1680514873200,0.41848449,1810.4,1809.9,16.9827438]
[1680514873397,0.41848449,1810.4,1809.9,17.2589938]
[1680514874431,0.41848449,1810.4,1809.9,16.9827438]
[1680514875326,0.41848449,1810.4,1809.9,16.9587438]
[1680514876631,0.41848449,1810.4,1809.9,22.7677438]
[1680514877730,0.41848449,1810.4,1809.9,23.0439938]
[1680514878036,0.41043861,1810.4,1809.9,23.04866127]
[1680514878249,0.02049554,1810.4,1809.9,23.05173266]
[1680514878925,0.21381554,1810.4,1809.9,23.05173266]
[1680514879145,0.48595293,1810.3,1809.9,23.05173266]
[1680514880214,0.21381554,1810.4,1809.9,23.05173266]
[1680514882127,0.21381554,1810.4,1809.9,22.77548266]
[1680514882660,0.21381554,1810.4,1809.9,23.05173266]
[1680514883063,0.21381554,1810.4,1809.9,22.77548266]
[1680514884462,0.21381554,1810.4,1809.9,16.96648266]
[1680514885451,0.21381554,1810.4,1809.9,22.77548266]
[1680514885767,0.21381554,1810.4,1809.9,17.24273266]
[1680514885968,0.21381554,1810.4,1809.9,16.96648266]
[1680514886391,0.02049554,1810.4,1809.9,23.05173266]
[1680514886577,0.21381554,1810.4,1809.9,23.05173266]
[1680514886777,0.21381554,1810.4,1809.9,0.00466747]
[1680514886778,2.78776728,1810.3,1809.9,0.00466747]
[1680514886995,1.221,1810.0,1809.8,0.00466747]
[1680514887287,1.41438,1810.0,1809.7,0.00466747]
[1680514887646,9.53547673,1810.2,1809.7,0.58211127]
[1680514887847,9.34212673,1810.2,1809.7,0.58011127]
[1680514888082,9.34212673,1810.2,1809.7,0.58211127]
[1680514888388,0.93421267,1810.1,1809.7,0.58211127]
[1680514888551,0.19337,1810.0,1809.7,0.00466747]
[1680514888751,0.19337,1810.0,1809.7,0.58211127]
[1680514889989,4.649,1810.2,1809.8,6.3864438]
[1680514890287,0.009,1810.3,1809.9,0.64171577]
[1680514890492,0.19332,1810.4,1809.9,17.50045957]
[1680514890986,0.19332,1810.4,1809.9,17.50512704]
[1680514891392,0.19332,1810.4,1809.9,17.78137704]
[1680514891553,0.19332,1810.4,1810.0,1.50325393]
[1680514893280,8.25798481,1810.5,1810.0,1.50325393]
[1680514893475,4.87135481,1810.5,1810.0,1.50325393]
[1680514893682,4.86835481,1810.5,1810.0,1.50325393]
[1680514894057,4.86835481,1810.5,1810.0,1.5059214]
[1680514894259,0.48537276,1810.4,1810.0,1.5059214]
[1680514894482,0.67869276,1810.4,1810.1,0.15059214]
[1680514894678,0.67869276,1810.4,1810.0,0.00266747]
[1680514894866,0.67869276,1810.4,1809.9,17.14273266]
[1680514895296,0.48537276,1810.4,1809.9,17.14273266]
[1680514895458,0.67869276,1810.4,1809.9,16.86648266]
[1680514900327,0.67869276,1810.4,1809.9,16.86648266]
[1680514901331,1.221,1810.2,1809.9,0.58211127]
[1680514901495,1.221,1810.2,1809.8,0.00466747]
[1680514901496,0.19336,1810.1,1809.8,0.00466747]
[1680514901695,3.24530656,1810.3,1809.7,1.44832326]
[1680514901917,0.19334,1810.2,1809.8,0.5774438]
[1680514902105,0.26120928,1810.3,1809.8,1.44832326]
[1680514902326,0.48462897,1810.2,1809.8,1.62078359]
[1680514903031,0.48462897,1810.2,1809.9,0.5774438]
[1680514903728,0.48462897,1810.2,1809.9,0.58011127]
[1680514904311,0.21382554,1810.4,1809.9,0.58011127]
[1680514904496,0.21382554,1810.4,1810.0,0.05801113]
[1680514905357,0.21382554,1810.4,1810.0,0.63545493]
[1680514908824,0.60047554,1810.4,1809.9,1.44832326]
[1680514909027,0.60047554,1810.4,1809.9,0.58211127]
[1680514909230,0.48479571,1810.3,1809.9,0.5774438]
[1680514909549,0.67813571,1810.3,1809.9,0.58011127]
[1680514911638,0.67813571,1810.3,1809.9,0.5774438]
[1680514912341,1.06480571,1810.3,1809.9,0.5774438]
[1680514914338,1.23107919,1810.3,1809.9,0.5774438]
[1680514916384,2.45207919,1810.3,1809.9,0.5774438]
[1680514919597,2.06540919,1810.3,1809.9,0.5774438]
[1680514922094,0.84440919,1810.3,1809.9,0.5774438]
[1680514923799,0.84440919,1810.3,1809.9,1.44365579]
[1680514926167,0.84192554,1810.3,1809.9,1.44365579]
[1680514926902,0.08419255,1810.2,1809.9,1.44365579]
[1680514927104,1.221,1810.0,1809.9,0.00266747]
[1680514927290,11.32235728,1810.0,1809.6,0.58211127]
[1680514927598,1.32562573,1809.9,1809.6,0.58211127]
[1680514927804,1.32562573,1809.9,1809.6,0.00266747]
[1680514928007,1.32562573,1809.9,1809.5,0.5794438]
[1680514928008,1.32562573,1809.9,1809.5,0.58211127]
[1680514928162,2.39738573,1809.9,1809.5,0.58211127]
[1680514929998,2.39738573,1809.9,1809.5,0.00466747]
[1680514930210,0.23973857,1809.8,1809.5,0.00466747]
[1680514930388,0.43313857,1809.8,1809.5,0.00466747]
[1680514930892,0.43313857,1809.8,1809.5,0.58211127]
[1680514931717,0.43313857,1809.8,1809.5,0.00466747]
[1680514932049,0.19338,1809.9,1809.5,0.00466747]
[1680514932227,0.19338,1809.9,1809.5,0.5774438]
[1680514932416,0.19338,1809.9,1809.5,0.58211127]
[1680514934338,0.50030374,1809.8,1809.5,0.58011127]
[1680514934537,0.50030374,1809.8,1809.5,0.58211127]
[1680514934710,0.50030374,1809.8,1809.6,0.05821113]
[1680514934908,0.50030374,1809.8,1809.6,0.0628786]
[1680514935307,0.69369374,1809.8,1809.6,0.0628786]
[1680514935805,0.50030374,1809.8,1809.6,0.0628786]
[1680514937042,0.69369374,1809.8,1809.6,0.0628786]
[1680514937344,0.69369374,1809.8,1809.5,0.58011127]
[1680514937540,0.69369374,1809.8,1809.5,0.5774438]
[1680514937741,0.50030374,1809.8,1809.5,0.5774438]
[1680514938110,0.50030374,1809.8,1809.5,6.3864438]
[1680514938442,0.50030374,1809.8,1809.5,6.39111127]
[1680514938746,0.50030374,1809.8,1809.6,0.63911113]
[1680514938917,0.50030374,1809.8,1809.6,0.6437786]
[1680514939307,0.69369374,1809.8,1809.6,0.6437786]
[1680514939538,0.50030374,1809.8,1809.6,0.6437786]
[1680514939711,0.69369374,1809.8,1809.6,0.6437786]
[1680514939915,0.69369374,1809.8,1809.5,6.39111127]
[1680514940151,0.69369374,1809.8,1809.5,9.17887855]
[1680514940316,0.50030374,1809.8,1809.5,9.17887855]
[1680514940966,1.08047374,1809.8,1809.5,0.58211127]
[1680514941123,0.69369374,1809.8,1809.5,0.00466747]
[1680514941321,0.80174111,1809.8,1809.4,0.58211127]
[1680514941631,0.50030374,1809.8,1809.4,0.58211127]
[1680514941824,0.50030374,1809.8,1809.4,9.45520855]
[1680514942151,0.50030374,1809.8,1809.4,11.26709054]
[1680514942315,0.19338,1809.9,1809.4,11.26709054]
[1680514943281,0.19338,1809.9,1809.4,11.27016278]
[1680514943463,0.45877084,1809.8,1809.4,11.27016278]
[1680514943617,0.45877084,1809.8,1809.5,6.93601628]
[1680514943817,0.45877084,1809.8,1809.5,6.94068375]
[1680514944014,0.45877084,1809.8,1809.5,10.58220483]
[1680514944358,0.19337,1810.0,1809.6,7.6014438]
[1680514944517,0.19337,1810.0,1809.6,25.4144933]
[1680514946042,0.19337,1810.0,1809.6,19.6054933]
[1680514946222,0.58011,1810.0,1809.6,19.6054933]
[1680514947186,0.58011,1810.0,1809.6,18.3904933]
[1680514949286,0.58011,1810.0,1809.6,0.00466747]
[1680514949445,0.02049554,1809.9,1809.5,0.58211127]
[1680514949804,0.21388554,1809.9,1809.5,12.65672326]
[1680514950909,0.02049554,1809.9,1809.5,12.65672326]
[1680514951108,0.21183959,1809.9,1809.6,0.5774438]
[1680514951380,0.01845959,1809.9,1809.6,0.5774438]
[1680514951549,0.21183959,1809.9,1809.6,0.5774438]
[1680514951753,7.6326,1810.2,1809.7,0.28127609]
[1680514951966,4.81995,1810.2,1809.7,0.85871989]
[1680514952145,4.81695,1810.2,1809.7,0.58244989]
[1680514952338,4.81695,1810.2,1809.7,0.88103207]
[1680514952339,5.22209958,1810.2,1809.7,0.88103207]
[1680514952573,5.22509958,1810.2,1809.7,0.88103207]
[1680514954382,0.5206061,1810.1,1809.7,0.88103207]
[1680514954579,0.7139661,1810.1,1809.7,0.88103207]
[1680514956089,0.7139661,1810.1,1809.7,1.45847587]
[1680514956285,0.7139661,1810.1,1809.8,0.14584759]
[1680514957107,0.5206061,1810.1,1809.8,0.14584759]
[1680514957394,0.7139561,1810.1,1809.8,0.14584759]
[1680514958044,0.5206061,1810.1,1809.8,0.14584759]
[1680514958637,0.7139661,1810.1,1809.8,0.14584759]
[1680514960349,0.7139661,1810.1,1809.7,1.45847587]
[1680514960954,0.7139661,1810.1,1809.7,0.58244989]
[1680514966223,0.7139661,1810.1,1809.7,0.5774438]
[1680514966816,1.1006761,1810.1,1809.7,0.5774438]
[1680514967743,0.7139661,1810.1,1809.7,0.5774438]
[1680514968541,1.1006761,1810.1,1809.7,0.5774438]
[1680514968716,0.11006761,1810.0,1809.6,0.5774438]
[1680514969043,0.11006761,1810.0,1809.6,1.44365579]
[1680514969044,0.19337,1810.0,1809.6,1.44365579]
[1680514969342,0.46859497,1809.9,1809.6,1.44365579]
[1680514970135,0.46859497,1809.9,1809.7,0.5774438]
[1680514971042,0.46859497,1809.9,1809.8,0.00500582]
[1680514971341,0.46859497,1809.9,1809.8,1.22159458]
[1680514972211,7.92334,1810.3,1809.8,1.22159458]
[1680514972812,3.20234,1810.3,1809.8,7.03059458]
[1680514973113,0.19934,1810.3,1809.8,7.03059458]
[1680514973316,0.7106066,1810.2,1809.8,18.62699458]
[1680514973558,0.7106066,1810.2,1809.9,1.50275335]
[1680514978274,0.7106066,1810.2,1809.8,12.18084962]
[1680514978473,1.0972966,1810.2,1809.8,12.17884962]
[1680514980913,1.0972966,1810.2,1809.8,12.1738438]
[1680514983093,1.11575618,1810.2,1809.8,12.1738438]
[1680514985972,10.93452346,1810.2,1809.8,0.5774438]
[1680514986324,1.09345235,1810.1,1809.7,0.5774438]
[1680514986476,0.19336,1810.1,1809.7,0.5774438]
[1680514987322,0.51290913,1810.0,1809.7,0.5774438]
[1680514987818,0.51290913,1810.0,1809.8,0.5774438]
[1680514988023,0.51290913,1810.0,1809.7,1.44365579]
[1680514988184,0.51290913,1810.0,1809.7,7.25265579]
[1680514988388,0.51290913,1810.0,1809.8,0.72526558]
[1680514988630,0.70627913,1810.0,1809.8,0.5774438]
[1680514988964,0.70627913,1810.0,1809.7,19.15145579]
[1680514989273,0.51290913,1810.0,1809.8,0.5774438]
[1680514989440,0.70627913,1810.0,1809.7,19.15145579]
[1680514989628,0.51290913,1810.0,1809.7,19.14945579]
[1680514989829,0.70627913,1810.0,1809.7,19.14945579]
[1680514990229,0.70627913,1810.0,1809.8,0.5774438]
[1680514990455,0.70627913,1810.0,1809.7,13.34245579]
[1680514990670,0.70627913,1810.0,1809.8,0.5774438]
[1680514991277,0.70627913,1810.0,1809.7,13.34245579]
[1680514991475,0.70627913,1810.0,1809.8,0.5774438]
[1680514991936,0.70627913,1810.0,1809.7,20.6023193]
[1680514992273,0.70627913,1810.0,1809.8,0.5774438]
[1680514992875,0.70627913,1810.0,1809.7,20.6023193]
[1680514993072,0.70627913,1810.0,1809.8,0.5774438]
[1680514993564,0.70627913,1810.0,1809.7,20.6023193]
[1680514993763,0.51290913,1810.0,1809.8,1.2684786]
[1680514994337,0.59850958,1810.2,1809.8,1.2684786]
[1680514995454,0.21180958,1810.2,1809.8,1.2684786]
[1680514995663,0.21180958,1810.2,1809.8,2.13469059]
[1680514995969,0.21180958,1810.2,1809.8,1.2684786]
[1680514996670,0.21180958,1810.2,1809.8,2.13469059]
[1680514996967,0.21180958,1810.2,1809.9,0.5774438]
[1680514997168,0.21180958,1810.2,1809.8,2.13469059]
[1680514997380,0.21180958,1810.2,1809.8,0.5774438]
[1680514997548,0.21180958,1810.2,1809.8,1.44365579]
[1680514997865,0.21180958,1810.2,1809.9,0.5774438]
[1680514998072,0.21180958,1810.2,1809.8,1.44365579]
[1680514998431,0.20843047,1810.2,1809.9,0.5774438]
[1680514998742,0.20843047,1810.2,1809.9,0.5794438]
[1680514998952,0.20843047,1810.2,1809.9,0.5774438]
[1680514999147,0.56921325,1810.1,1809.9,0.5774438]
[1680514999361,0.56921325,1810.1,1809.9,1.65045285]
[1680514999675,0.56921325,1810.1,1809.9,1.65512032]
[1680515000170,0.56921325,1810.1,1809.9,0.58211127]
[1680515000346,0.56921325,1810.1,1809.9,0.5774438]
[1680515002277,0.76257325,1810.1,1809.8,6.79472326]
[1680515002568,0.76257325,1810.1,1809.8,6.79272326]
[1680515003549,1.14928325,1810.1,1809.8,6.79272326]
[1680515004202,0.76257325,1810.1,1809.8,6.79272326]
[1680515007167,0.87900862,1810.1,1809.8,1.44832326]
[1680515010325,0.56921325,1810.1,1809.8,1.44832326]
[1680515010530,0.76257325,1810.1,1809.8,1.44832326]
[1680515010825,0.56921325,1810.1,1809.8,1.44832326]
[1680515010999,0.76257325,1810.1,1809.8,1.44832326]
[1680515011420,0.56921325,1810.1,1809.8,1.44832326]
[1680515011626,0.76256325,1810.1,1809.8,1.44832326]
[1680515011789,0.56921325,1810.1,1809.8,1.44832326]
[1680515011993,0.76257325,1810.1,1809.8,1.44832326]
[1680515012493,0.56921325,1810.1,1809.8,1.44832326]
[1680515012919,0.76256325,1810.1,1809.8,1.44832326]
[1680515013196,0.56921325,1810.1,1809.8,1.44832326]
[1680515015630,0.76256325,1810.1,1809.9,0.5774438]
[1680515015826,0.84033762,1810.1,1809.8,1.44832326]
[1680515016046,0.76257325,1810.1,1809.8,1.44832326]
[1680515016699,0.56921325,1810.1,1809.9,0.5774438]
[1680515017732,0.56921325,1810.1,1809.8,1.44832326]
[1680515019035,0.56921325,1810.1,1809.9,0.5774438]
[1680515023161,0.01508048,1810.0,1809.8,0.58011127]
[1680515023461,0.19568942,1809.9,1809.8,0.5774438]
[1680515024247,0.70720021,1809.9,1809.8,0.5774438]
[1680515025460,1.09396021,1809.9,1809.8,0.5774438]
[1680515026361,0.70720021,1809.9,1809.8,0.5774438]
[1680515026725,0.70720021,1809.9,1809.7,0.5774438]
[1680515026932,1.20144341,1809.9,1809.6,0.69632326]
[1680515028027,0.70720021,1809.9,1809.6,0.69632326]
[1680515030969,0.51382021,1809.9,1809.6,0.69632326]
[1680515031171,0.51382021,1809.9,1809.7,0.00821713]
[1680515031777,0.51382021,1809.9,1809.7,10.7267699]
[1680515031932,0.51382021,1809.9,1809.7,23.42126356]
[1680515032137,0.51382021,1809.9,1809.8,6.498]
[1680515032347,0.51382021,1809.9,1809.8,9.28576728]
[1680515033369,0.00230942,1809.9,1809.8,8.59676728]
[1680515033986,0.00230942,1809.9,1809.7,1.17272262]
[1680515034267,0.00230942,1809.9,1809.6,8.43349915]
[1680515034268,0.54291305,1809.9,1809.6,8.43349915]
[1680515034438,0.54291305,1809.9,1809.7,18.1032554]
[1680515034638,0.54291305,1809.9,1809.7,18.1092554]
[1680515034836,0.54291305,1809.9,1809.7,18.3835354]
[1680515035042,0.54291305,1809.9,1809.7,18.3855354]
[1680515035378,0.54291305,1809.9,1809.8,1.2985484]
[1680515035742,0.54291305,1809.9,1809.8,7.1075484]
[1680515035980,0.54291305,1809.9,1809.8,8.25290944]
[1680515036280,0.00230942,1809.9,1809.8,8.00063944]
[1680515037280,0.53915757,1809.9,1809.8,8.00063944]
[1680515038142,0.53915757,1809.9,1809.8,8.27690944]
[1680515038761,0.53915757,1809.9,1809.8,8.22690944]
[1680515039272,0.53915757,1809.9,1809.8,7.95063944]
[1680515039448,0.53915757,1809.9,1809.8,8.22690944]
[1680515040470,0.53915757,1809.9,1809.8,7.95063944]
[1680515044259,0.53915757,1809.9,1809.8,7.92663944]
[1680515044862,0.53915757,1809.9,1809.8,7.90280793]
[1680515048077,0.53915757,1809.9,1809.8,0.86909104]
[1680515048282,1.11929757,1809.9,1809.7,0.57935196]
[1680515048610,1.11929757,1809.9,1809.5,1.448443]
[1680515048819,1.11929757,1809.9,1809.5,0.57935196]
[1680515049671,1.12529757,1809.9,1809.5,0.57935196]
[1680515049886,0.11252976,1809.8,1809.5,0.57935196]
[1680515050179,0.1934,1809.7,1809.5,0.57935196]
[1680515051010,0.64908989,1809.8,1809.5,0.57935196]
[1680515051177,0.72995013,1809.8,1809.5,0.57935196]
[1680515052289,1.11673013,1809.8,1809.5,0.57935196]
[1680515052977,0.01508048,1809.7,1809.4,0.57935196]
[1680515053176,0.58023,1809.6,1809.4,0.57935196]
[1680515053369,0.58023,1809.6,1809.3,7.259443]
[1680515053727,0.58023,1809.6,1809.3,1.448443]
[1680515053910,0.58023,1809.6,1809.4,0.57935196]
[1680515054072,0.64036105,1809.6,1809.4,0.57935196]
[1680515054267,0.64036105,1809.6,1809.3,1.448443]
[1680515054868,0.58023,1809.6,1809.3,1.448443]
[1680515056419,0.58023,1809.6,1809.3,0.57935196]
[1680515059419,0.5330561,1809.5,1809.3,0.57935196]
[1680515059596,0.19343,1809.4,1809.3,0.57935196]
[1680515061199,0.7264861,1809.5,1809.3,0.57935196]
[1680515064500,0.5330561,1809.5,1809.3,0.57935196]
[1680515066341,0.21449048,1809.7,1809.3,0.57935196]
[1680515066506,0.82970853,1809.7,1809.3,0.57935196]
[1680515073149,1.21650853,1809.7,1809.3,0.57935196]
[1680515074428,0.53315212,1809.6,1809.3,0.57935196]
[1680515074717,0.72656212,1809.6,1809.3,0.57935196]
[1680515075635,0.72656212,1809.6,1809.2,7.259443]
[1680515075836,0.72656212,1809.6,1809.2,10.04521028]
[1680515077345,0.72386569,1809.6,1809.2,10.04521028]
[1680515077552,0.72386569,1809.6,1809.2,10.05121028]
[1680515078150,0.72386569,1809.6,1809.3,0.57935196]
[1680515078944,0.53045569,1809.6,1809.3,0.57935196]
[1680515079314,0.72386569,1809.6,1809.3,0.57935196]
[1680515079726,0.53045569,1809.6,1809.3,10.18144027]
[1680515079943,0.53045569,1809.6,1809.4,6.38835196]
[1680515080141,0.53045569,1809.6,1809.4,6.39435196]
[1680515080329,4.9707,1809.8,1809.4,6.39435196]
[1680515080538,4.9677,1809.8,1809.4,6.39435196]
[1680515080738,4.9677,1809.8,1809.5,0.6394352]
[1680515081553,0.53343645,1809.7,1809.5,0.6394352]
[1680515082336,0.72683645,1809.7,1809.5,0.6394352]
[1680515083364,0.72683645,1809.7,1809.4,0.006]
[1680515083529,0.72683645,1809.7,1809.3,3.37311924]
[1680515083732,0.72683645,1809.7,1809.3,4.24221028]
[1680515083931,0.53343645,1809.7,1809.3,4.24221028]
[1680515084145,0.72683645,1809.7,1809.3,4.24221028]
[1680515084327,0.53343645,1809.7,1809.4,5.809]
[1680515084531,0.72683645,1809.7,1809.4,5.815]
[1680515084950,0.72683645,1809.7,1809.4,6.39435196]
[1680515085157,0.72683645,1809.7,1809.4,0.58535196]
[1680515085367,0.72683645,1809.7,1809.4,0.57935196]
[1680515086634,0.72683645,1809.7,1809.4,6.38835196]
[1680515086860,1.3159281,1809.7,1809.4,6.39435196]
[1680515087368,1.3159281,1809.7,1809.4,0.58535196]
[1680515087670,1.3159281,1809.7,1809.4,0.57935196]
[1680515088035,0.53343645,1809.7,1809.4,9.17611924]
[1680515088230,0.72683645,1809.7,1809.4,3.37311924]
[1680515089473,0.53343645,1809.7,1809.4,3.37311924]
[1680515089657,0.72683645,1809.7,1809.4,3.37311924]
[1680515090235,0.72683645,1809.7,1809.5,5.809]
[1680515090434,0.72683645,1809.7,1809.5,0.006]
[1680515090635,0.72683645,1809.7,1809.5,0.57935196]
[1680515090881,0.72683645,1809.7,1809.4,15.37625832]
[1680515090882,0.72683645,1809.7,1809.4,15.95761028]
[1680515091172,0.72683645,1809.7,1809.4,15.95561028]
[1680515091373,0.72683645,1809.7,1809.5,0.57935196]
[1680515091588,0.72683645,1809.7,1809.4,15.95761028]
[1680515091740,0.72683645,1809.7,1809.4,15.95561028]
[1680515092778,0.72683645,1809.7,1809.5,0.57935196]
[1680515092974,0.72683645,1809.7,1809.4,21.76661028]
[1680515093290,0.72683645,1809.7,1809.5,1.448443]
[1680515093641,0.53343645,1809.7,1809.5,0.57935196]
[1680515093866,0.72683645,1809.7,1809.5,0.57935196]
[1680515095682,0.72683645,1809.7,1809.5,1.448443]
[1680515100800,0.53343645,1809.7,1809.5,1.448443]
[1680515101005,0.53343645,1809.7,1809.6,0.57935196]
[1680515101361,0.53343645,1809.7,1809.5,1.448443]
[1680515101563,0.53343645,1809.7,1809.6,0.57935196]
[1680515101765,0.53343645,1809.7,1809.6,0.60138069]
[1680515102379,0.53075534,1809.7,1809.6,0.60138069]
[1680515102695,0.53075534,1809.7,1809.6,9.62169514]
[1680515102868,0.53075534,1809.7,1809.6,10.61154867]
[1680515103200,0.53075534,1809.7,1809.6,10.61976626]
[1680515103404,0.19337,1810.0,1809.6,10.61976626]
[1680515103572,0.19337,1810.0,1809.8,0.57967149]
[1680515104275,0.4627006,1809.9,1809.8,0.57967149]
[1680515105920,0.4627006,1809.9,1809.8,0.60168784]
[1680515106688,0.4627006,1809.9,1809.8,0.02201635]
[1680515107783,1.0428406,1809.9,1809.8,0.02201635]
[1680515107978,0.76036466,1809.9,1809.8,0.02201635]
[1680515109790,0.56698466,1809.9,1809.8,0.02201635]
[1680515110314,0.4627006,1809.9,1809.8,0.02201635]
[1680515110728,0.4627006,1809.9,1809.8,5.83101635]
[1680515111034,0.4627006,1809.9,1809.8,9.76456087]
[1680515111249,0.4627006,1809.9,1809.8,9.77277755]
[1680515111545,0.19933,1810.4,1809.8,21.72377755]
[1680515111696,0.20841048,1810.4,1809.9,0.57918444]
[1680515112088,0.78584402,1810.4,1809.9,0.57918444]
[1680515112283,0.4931094,1810.3,1809.8,21.43545475]